Cogmind - Beta 16.1 @@@ ROGUE MODE // 2026.05.01 @ 20:59:38 Player: thingimabob Result: Destroyed by G-47 Trooper with Particle Gun Performance ------------- Evolutions (0) 0 Regions Visited (1) 200 Robots Destroyed (20) 100 Value Destroyed (411) 411 Prototype IDs (0) 0 Alien Tech Used (0) 0 Bonus (0) 0 TOTAL SCORE: 711 Bonus ------- None Cogmind --------- Core Integrity 0/250 Matter 178/300 Energy 100/100 System Corruption 0% Temperature Cool (9) Movement Core (100) Ox1 Location -10/Materials Parts ------- > --- POWER (1) -------- (None) > --- PROPULSION (2) --- (None) > --- UTILITY (2) ------ Small Storage Unit > --- WEAPON (2) ------- (None) > --- INVENTORY (8) ---- Heat Sink Tractor Beam Light Assault Rifle Datajack Peak State ------------ > --- POWER ------------ Ion Engine > --- PROPULSION ------- Light Treads Light Treads > --- UTILITY ---------- Small Storage Unit Seismic Detector > --- WEAPON ----------- Medium Laser Small Laser > --- INVENTORY -------- (None) [Rating: 7] Favorites ----------- Power Ion Engine Engine Ion Engine Propulsion Light Treads Treads Light Treads Wheel Wheel Utility Small Storage Unit Device Seismic Detector Storage Small Storage Unit Weapon Medium Laser Energy Gun Medium Laser Ballistic Gun Assault Rifle Launcher Grenade Launcher Build | -11 -10 ------- Run | Yrd Mat Slots Evolved . | . . Power . | . . Propulsion . | . . Utility . | . . Weapon . | . . Parts Attached 12 | 7 5 Power 2 | 1 1 Engine 2 | 1 1 Core . | . . Reactor . | . . Propulsion 3 | 2 1 Treads 2 | 2 . Leg . | . . Wheel 1 | . 1 Hover . | . . Flight . | . . Utility 2 | 2 . Device 1 | 1 . Storage 1 | 1 . Processor . | . . Hackware . | . . Protection . | . . Artifact . | . . Weapon 5 | 2 3 Energy Gun 2 | 2 . Energy Cannon . | . . Ballistic Gun 2 | . 2 Ballistic Cannon . | . . Launcher 1 | . 1 Special Weapon . | . . Impact Weapon . | . . Slashing Weapon . | . . Piercing Weapon . | . . Special Melee Weapon . | . . Unidentified Prototypes . | . . Parts Lost 9 | . 9 Power 2 | . 2 Propulsion 3 | . 3 Utility 1 | . 1 Weapon 3 | . 3 Highest Loss Streak 4 | . 4 To Critical Strikes . | . . Average Backups 2 | . 3 Power . | . . Propulsion . | . . Utility 1 | . 1 Weapon . | . . Tool/Special . | . . Unused Backups 3 | . 3 Power . | . . Propulsion . | . . Utility 2 | . 2 Weapon . | . . Tool/Special 1 | . 1 Average Slot Usage (%) 91 | . 91 Engine 12 | . 12 Treads 24 | . 24 Wheel 1 | . 1 Device 12 | . 12 Storage 14 | . 14 Energy Gun 15 | . 15 Ballistic Gun 8 | . 8 Peak Build Rating 7 | 7 7 Average Rating 6 | 5 6 On Entrance 3 | . 7 Avg Prop Armor Cover (%) . | . . Naked Turns . | . . Heaviest Build 15 | 14 15 Greatest Support 40 | 40 40 Greatest Overweight (x) 1 | . 1 Average Overweight (x) . | . . Largest Inventory Capacity 8 | 8 8 Average Capacity 7 | 7 8 Most Carried 5 | 5 5 Average Carried 2 | . 3 Final Capacity 8 | 8 8 Final Carried 4 | . 4 Class Distribution -------------------- 100% | Mutant Dominant Class ---------------- Mutant | -10/Materials Resources | -11 -10 ----------- Run | Yrd Mat Matter Collected 372 | 270 102 Remotely . | . . Salvage Created 637 | 138 499 Parts 39 | 11 28 Haulers Intercepted 1 | . 1 Recyclers Shooed . | . . Parts Field Recycled . | . . Retrieved Matter . | . . Parts Self-Destructed . | . . Prevented . | . . Parts Restored . | . . Kills | -11 -10 ------- Run | Yrd Mat Combat Hostiles Destroyed 13 | . 13 Guns 9 | . 9 AOE 2 | . 2 Classes Destroyed 6 | 2 4 Builder 1 | . 1 Tunneler 4 | 4 . Hauler 1 | . 1 Recycler 1 | 1 . Swarmer 3 | . 3 Grunt 10 | . 10 Best Kill Streak 3 | 3 2 Combat Bots Only 3 | . 3 Max Kills in Single Turn 1 | 1 1 Gunslinging . | . . Exploded 1 | . 1 Melee . | . . Uniques/NPCs Destroyed . | . . Combat | -11 -10 -------- Run | Yrd Mat Hostile Shots Fired 124 | . 124 Missed 23 | . 23 Hits 101 | . 101 Projectile 101 | . 101 Critical Strikes 1 | . 1 Damage Taken 1142 | . 1142 Core 266 | . 266 Absorbed by Shields . | . . Core Remaining (%) 100 | 100 . Volleys Fired 105 | 14 91 Largest 2 | 2 2 Hottest 90 | 90 90 Shots Fired 162 | 28 134 Gun 157 | 28 129 Cannon . | . . Launcher 5 | . 5 Special . | . . Kinetic 67 | . 67 Thermal 90 | 28 62 Explosive 5 | . 5 Electromagnetic . | . . Robot Hit Streak 10 | 6 10 Robot Miss Streak 6 | 2 6 Penetration Max . | . . Secondary Targets . | . . Shots Hit Robots 107 | 19 88 Core Hits 32 | 6 26 Critical Kills . | . . Critical Parts Destroyed . | . . Critical Strikes 1 | . 1 Burn 1 | . 1 Melee Attacks . | . . Impact . | . . Slashing . | . . Piercing . | . . Sneak Attacks . | . . Combat Hostiles . | . . Follow-up Attacks . | . . Damage Inflicted 1563 | 226 1337 Guns 1247 | 226 1021 Cannons . | . . Explosions 316 | . 316 Melee . | . . Ramming . | . . Kinetic 464 | . 464 Thermal 783 | 226 557 Explosive 316 | . 316 Electromagnetic . | . . Impact . | . . Slashing . | . . Piercing . | . . Highest Corruption . | . . Average Corruption . | . . Corruption Purged . | . . Corruption Blocked . | . . Overload Shots . | . . Overflow Damage 13 | . 13 Projectiles . | . . Explosions 13 | . 13 Melee . | . . Knockbacks . | . . Impact . | . . Kinetic . | . . Secondary . | . . Self-Inflicted Damage 3 | . 3 Shots 1 | . 1 Rammed . | . . Targets Rammed . | . . Kicked . | . . Crushed . | . . Highest Temperature 324 | 210 324 Average Temperature 111 | 85 121 Received Heat Transfer 510 | . 510 Effects 4 | 2 2 Shutdowns 1 | . 1 Energy Bleed 1 | . 1 Interference 2 | 2 . Siege Activations . | . . Martial Activations . | . . Shielding Activations . | . . Robots Disrupted . | . . Combat Hostiles . | . . Robots Corrupted . | . . Combat Hostiles . | . . Parts Fried . | . . Impact Corruptions . | . . Robots Melted 3 | . 3 Combat Hostiles 2 | . 2 Parts Melted 7 | 1 6 Heat Transferred 2191 | 595 1596 Parts Sabotaged . | . . Parts Stolen . | . . Parts Stripped . | . . Power Chain Reactions . | . . Alert | -11 -10 ------- Run | Yrd Mat Maximum Alert Level . | . . Low Security (%) 100 | 100 100 Level 1 . | . . Level 2 . | . . Level 3 . | . . Level 4 . | . . Level 5 . | . . High Security . | . . Max Security . | . . Peak Influence 135 | 10 135 Initial . | . . Average 26 | 1 31 Influence Increases 395 | 25 370 Destroy 0b10 Robot/C 260 | . 260 Destroy 0b10 Robot/NC 35 | 25 10 Destroy Leader 42 | . 42 Destroy Structure 13 | . 13 Lose Combat Pursuer 45 | . 45 Influence Decreases 316 | 25 291 Time Decay 226 | 25 201 Lost Part 90 | . 90 Squads Dispatched 3 | . 3 Investigation 2 | . 2 Extermination . | . . Reinforcement 1 | . 1 Assault . | . . Garrison . | . . Intercept . | . . Searches Triggered . | . . Construction Impeded . | . . Haulers Reinforced . | . . Active Scanning Responses . | . . Cargo Convoy Interrupts . | . . Stealth | -11 -10 --------- Run | Yrd Mat Distress Signals 3 | . 3 Communications Jammed . | . . Distress Signals . | . . Times Spotted 25 | . 25 Peak Tracking Total 7 | . 7 Tactical Retreats 2 | . 2 Traps | -11 -10 ------- Run | Yrd Mat Traps Triggered 2 | . 2 Indirectly . | . . Trap Hack Attempts . | . . Triggered . | . . Disarmed . | . . Reprogrammed . | . . Reused . | . . Traps Extracted . | . . Installed . | . . Triggered . | . . Machines | -11 -10 ---------- Run | Yrd Mat Machines Disabled . | . . Max in Single Turn . | . . Machines Repaired . | . . Machines Dismantled . | . . Machines Sabotaged . | . . Overloaded Fab Kills . | . . Hacking | -11 -10 --------- Run | Yrd Mat Machines Accessed . | . . Terminals . | . . Fabricators . | . . Repair Stations . | . . Recycling Units . | . . Scanalyzers . | . . Garrison Access . | . . Total Hacks . | . . Successful . | . . Failed . | . . Catastrophic . | . . Database Lockouts . | . . Manual . | . . Terminals . | . . Fabricators . | . . Repair Stations . | . . Recycling Units . | . . Scanalyzers . | . . Garrison Access . | . . Terminal Hacks . | . . Fabricator Hacks . | . . Repair Station Hacks . | . . Recycling Unit Hacks . | . . Scanalyzer . | . . Garrison Access Hacks . | . . Unauthorized Hacks . | . . Terminals . | . . Fabricators . | . . Repair Stations . | . . Recycling Units . | . . Scanalyzers . | . . Garrison Access . | . . Data Cores Recovered . | . . Used . | . . Hacking Detections . | . . Full Trace Events . | . . Feedback Events . | . . Feedback Blocked . | . . Robot Schematics Acquired . | . . Robots Built . | . . Authchips . | . . Time . | . . Total Robot Build Rating . | . . Part Schematics Acquired . | . . Parts Built . | . . Authchips . | . . Time . | . . Total Part Build Rating . | . . Part Studies Acquired . | . . Parts Repaired . | . . Time . | . . Parts Recycled . | . . Recycled Matter . | . . Retrieved Matter . | . . Retrieved Components . | . . Parts Scanalyzed . | . . Part Schematics Acquired . | . . Parts Damaged . | . . Bothacking | -11 -10 ------------ Run | Yrd Mat Used RIF Installer . | . . Robots Hacked . | . . Non-combat . | . . Combat . | . . Robot Hacks Applied . | . . Relay Couplers Released . | . . Fabnet Peak Effective % . | . . Robots Rewired . | . . Allies Hacked . | . . Hacks Repelled . | . . Allies | -11 -10 -------- Run | Yrd Mat Total Allies . | . . Largest Group . | . . Highest-Rated Group . | . . Highest-Rated Ally . | . . Total Orders . | . . Ally Attacks . | . . Total Damage . | . . Kills . | . . Allies Corrupted . | . . Allies Melted . | . . Intel | -11 -10 ------- Run | Yrd Mat Active Infowar (turns) 681 | 20 661 Seismic 681 | 20 661 Robot Analysis Total . | . . Derelict Logs Recovered . | . . Drone Launches . | . . Drone Recoveries . | . . Exploration | -11 -10 ------------- Run | Yrd Mat Turns Passed 896 | 150 746 Spaces Moved 373 | 65 308 Core 17 | 17 . Treads 342 | 48 294 Legs . | . . Wheels 14 | . 14 Hover . | . . Flight . | . . Fastest Speed 50 | 50 95 Average Speed 152 | 131 157 Slowest Speed 160 | 160 160 Overloaded Moves . | . . Propulsion Burnouts . | . . Robots Hopped . | . . Potential Cave-ins . | . . Cave-ins Triggered . | . . Exploration Rate (%) 26 | 4 49 Regions Visited 1 Branch Regions . Pre-discovered Areas . | . . Known Exits Taken . | . . Unknown Exits Taken 1 | 1 . Scrap Searched . | . . Spaces Dug . | . . Terrain Destroyed 20 | . 20 Melee . | . . Projectile . | . . AOE 20 | . 20 Terrain Rammed . | . . Walls Destroyed . | . . Machines Disabled . | . . Actions | -11 -10 --------- Run | Yrd Mat Total 543 | 102 441 Wait 38 | 10 28 Move 372 | 64 308 Hop . | . . Pick Up 15 | 7 8 Fast Attach . | . . Attach 11 | 7 4 Detach . | . . Swap 1 | . 1 Drop 1 | . 1 Fire 105 | 14 91 Melee . | . . Ram . | . . Kick . | . . Crush . | . . Escape Stasis . | . . Rewire . | . . Trap . | . . Miscellaneous . | . . Route ------- -11/Scrapyard -10/Materials (discovered 3 exits: [*Mat] / [*Min] / [*Sub]) History --------- Turn | Location | Event 7 | -11/Scrapyard | Discovered new exit (range 14) 151 | -11/Scrapyard | Entered Materials 304 | -10/Materials | Build established: Mutant 468 | -10/Materials | Discovered new exit (range 14) 671 | -10/Materials | Discovered new exit (range 7) 696 | -10/Materials | Core integrity fell below 50% 843 | -10/Materials | Lost 3 parts (2n1u) 854 | -10/Materials | Discovered new exit (range 7) 884 | -10/Materials | Core integrity fell below 20% 897 | -10/Materials | Destroyed by G-47 Trooper with Particle Gun Last Messages --------------- Seismic Detector destroyed. G-34 Mercenary destroyed. K-01 Serf cleans the Terminal. K-01 Serf collects debris. G-34 Mercenary destroyed. EXIT=FOUND K-01 Serf collects debris. Destroyed Flight Unit. S-10 Pest destroyed. The unstable cave ceiling collapses. K-01 Serf cleans the Atomic Centrifuge. The unstable cave ceiling collapses. K-01 Serf cleans the Atomic Centrifuge. Ion Engine destroyed. The unstable cave ceiling collapses. Grenade Launcher destroyed. Wheel destroyed. Critical hit (Burn: +37). The unstable cave ceiling collapses. Assault Rifle destroyed. Map ----- +----------------------------------------------------+ | ???????#####?????????????????????????????????????? | | ???????# #?????????????????????????????????????? | | ???????# < #?????????????????????????????????????? | | ???????# #?????????????????????????????????????? | | ######## ###################???????????????????? | | ??????????????????? | | |! ??????????????????? | | %=! ??????????????????? | | #######+###### #######?????????????????????????? | | #?# != #?# #???????????????????????????????? | | ### #?# #???????????????????????????????? | | + % #?# #??????????######???????????????? | | ### """ #?# #?????????? ^??????????????? | | #?# """"" #?# #?????????? ???????????????? | | #?# """"" #?# #?????????? ???????????????? | | #?# """"" #?# #????????? ???????????????? | | #?# """ #?# #????????? ""?????????????? | | #?# #?# #????????? ""???=?????????? | | #?##########?#!#????????? "" """ =?????????? | | #????????????#%#####????? "T =!????????? | | #????????????#== /###### "" ????????? | | #????????????# =%[ ???????? | | #????????????# ! ???????? | | #????????????# # # #?????????? | | #????????????# !###g####g #< # #?????????? | | #????????????# ##### @ g #####??????????? | | ##???????????# #???# k"""#####??????????????? | | #???????????# #???# """#??????????????????? | | #???????????# ????# o"""#??????????????????? | | " #???????????# ????# #??????????????????? | | +???????????# ????# """#??????????????????? | | #???????????# ????# """#??????????????????? | | ####???????????# ????# """#??????????????????? | | ########+#?????? ????# ???????????????????? | | !!%! ????? ????######+#????????????????????? | | ! ???????????????? #????????????????????? | | ???????????????? #????????????????????? | | ######??????????????????? ????????????????????? | | #???????????????????????? ????????????????????? | | #????????????????????????? ????????????????????? | | #??????????????????????????????????????????????? | | #??????????????????????????????????????????????? | | #??????????????????????????????????????????????? | | ###??????????????????????????????????????????????? | | #####????????????????????????????????????????????? | | #????????????????????????????????????????????? | | #????????????????????????????????????????????? | | #????????????????????????????????????????????? | | #????????????????????????????????????????????? | | " " #????????????????????????????????????????????? | +----------------------------------------------------+ Best States ------------- Heat Dissipation 25 Energy Generation 10 Energy Capacity 250 Matter Stores 300 Matter Capacity 300 Sight Range 16 Terrain Scan Density 10 Evasion (%) 50 Recoil Reduction 2 Item Schematics ----------------- None Robot Schematics ------------------ None Fabricated ------------ Nothing Repaired ---------- Nothing Studied --------- None Alien Tech Used ----------------- None Achievements -------------- None Challenges ------------ None Game ------ Seed SuperchargedHugeTurbovents Manual? 0 Play Time 00:08:11 Cumulative 47.9 hours Start 2026.04.24 @ 22:58:58 End 2026.05.01 @ 20:59:38 Sessions 2 Manual Loads 0 Difficulty Rogue Special Mode None Game No. 61 Rogue 61 Adventurer 0 Explorer 0 Win Type - Total 1 Types 1/0/0/0/0/0/0/0/0/0 Lore% 34 Gallery% 31 Achievement% 28 Wizard Run 0 Options --------- Layout 1 ASCII 0 Keyboard 0 Movement Mouse Keybinds 0 Fullscreen 2 Font 24/Smallcaps Map View 50x35 Zoom Use 0% Tactical HUD 0 Map Filters NONE Filters NONE Steam 1 RUN: c85e790d-b183-441d-ad45-825003bc5c4b